Cogmind - Beta 16.1 @@@ ROGUE MODE // 2026.03.17 @ 19:58:10 Player: ash Result: Destroyed by C-35 Carver with Carbide Saw Performance ------------- Evolutions (7) 3500 Regions Visited (10) 2000 Robots Destroyed (65) 325 Value Destroyed (2264) 2264 Prototype IDs (8) 160 Alien Tech Used (0) 0 Bonus (809) 809 TOTAL SCORE: 9058 Bonus ------- Follower Combat Kills 309 Entered DSFs 500 Cogmind --------- Core Integrity 0/1300 Matter 51/300 Energy 100/100 System Corruption 0% Temperature Cool (0) Movement Core (50) Location -3/Research Parts ------- > --- POWER (2) -------- (None) > --- PROPULSION (7) --- (None) > --- UTILITY (8) ------ Advanced Melee Analysis Suite Hacking Suite > --- WEAPON (4) ------- (None) > --- INVENTORY (5) ---- Experimental Energy Well (469) Advanced ECM Suite Mini Grenade Launcher Peak State ------------ > --- POWER ------------ Micro Fission Core Micro Fission Core > --- PROPULSION ------- VTOL Module Cesium-ion Thruster Improved Cesium-ion Thruster Cooled VTOL Module Cooled VTOL Module Cooled VTOL Module Cooled VTOL Module > --- UTILITY ---------- Large Storage Unit Advanced Sensor Array Improved Signal Interpreter Advanced Melee Analysis Suite Hacking Suite Hacking Suite Improved Hacking Suite > --- WEAPON ----------- Spear > --- INVENTORY -------- Micro Fission Core Micro Fission Core VTOL Module Advanced Cooling System High-capacity Matter Pod Sensor Array Advanced Melee Analysis Suite Improved Kinecellerator Microactuators Advanced ECM Suite Advanced System Shield Mini Grenade Launcher Katana Spear Spear [Rating: 77] Favorites ----------- Power Heavy Ion Engine Engine Heavy Ion Engine Power Core Micro Nuclear Core Propulsion Aluminum Leg Leg Aluminum Leg Flight Unit Cooled VTOL Module Utility Large Storage Unit Device Advanced Sensor Array Storage Large Storage Unit Processor Improved Signal Interpreter Hackware Hacking Suite Protection Medium Armor Plating Weapon Shotgun Energy Gun Beam Rifle Energy Cannon Disruptor Cannon Ballistic Gun Shotgun Launcher Grenade Launcher Slashing Weapon Katana Piercing Weapon Spear Build | -11 -10 -9 -9 -8 -7 -6 -5 -4 -4 -3 ------- Run | Yrd Mat Mat Sto Mat Fac Fac Fac Fac DSF Res Slots Evolved 14 | . . 2 . 2 2 2 2 2 . 2 Power 1 | . . . . . . 1 . . . . Propulsion 5 | . . 2 . 1 1 1 . . . . Utility 6 | . . . . 1 . . 2 2 . 1 Weapon 2 | . . . . . 1 . . . . 1 Parts Attached 71 | . 6 11 4 5 21 7 6 . 4 7 Power 10 | . . 2 . . 3 1 1 . 2 1 Engine 3 | . . 1 . . 2 . . . . . Core 7 | . . 1 . . 1 1 1 . 2 1 Reactor . | . . . . . . . . . . . Propulsion 24 | . 2 4 1 4 10 1 . . . 2 Treads . | . . . . . . . . . . . Leg 15 | . 2 4 1 4 4 . . . . . Wheel . | . . . . . . . . . . . Hover . | . . . . . . . . . . . Flight 9 | . . . . . 6 1 . . . 2 Utility 21 | . 1 2 1 1 4 2 4 . 2 4 Device 4 | . . . . . 1 2 1 . . . Storage 2 | . . 1 . . . . . . . 1 Processor 6 | . . . . 1 2 . 1 . . 2 Hackware 4 | . . . . . . . 1 . 2 1 Protection 5 | . 1 1 1 . 1 . 1 . . . Artifact . | . . . . . . . . . . . Weapon 16 | . 3 3 2 . 4 3 1 . . . Energy Gun 1 | . . 1 . . . . . . . . Energy Cannon 1 | . . . . . . . 1 . . . Ballistic Gun 8 | . 2 2 2 . 2 . . . . . Ballistic Cannon . | . . . . . . . . . . . Launcher 2 | . 1 . . . . 1 . . . . Special Weapon . | . . . . . . . . . . . Impact Weapon . | . . . . . . . . . . . Slashing Weapon 1 | . . . . . 1 . . . . . Piercing Weapon 3 | . . . . . 1 2 . . . . Special Melee Weapon . | . . . . . . . . . . . Unidentified Prototypes 5 | . . 1 . . 2 . . . . 2 Parts Lost 21 | . . 1 1 . 7 1 . . 2 9 Power 4 | . . 1 . . 1 . . . 1 1 Propulsion 7 | . . . . . 3 . . . . 4 Utility 9 | . . . 1 . 2 1 . . 1 4 Weapon 1 | . . . . . 1 . . . . . Highest Loss Streak 6 | . . 1 1 . 2 1 . . 2 6 To Critical Strikes . | . . . . . . . . . . . Average Backups 11 | . 7 8 14 14 14 12 14 15 15 3 Power 1 | . 1 . 2 1 2 1 1 2 2 . Propulsion 2 | . 3 2 2 2 2 . 1 1 1 . Utility 3 | . . 2 5 3 3 6 7 8 8 1 Weapon 4 | . 2 3 3 5 6 3 4 4 4 1 Tool/Special . | . . . . . . . . . . . Unused Backups 37 | . 3 5 3 4 10 1 2 . 8 1 Power 6 | . . . . 3 1 . . . 2 . Propulsion 7 | . 1 . 1 1 3 . . . 1 . Utility 16 | . . 4 2 . 2 . 2 . 5 1 Weapon 8 | . 2 1 . . 4 1 . . . . Tool/Special . | . . . . . . . . . . . Average Slot Usage (%) 92 | . 95 99 100 98 98 83 85 78 78 34 Engine 6 | . 14 4 11 9 6 . . . . . Core 2 | . . 6 . . . 8 11 10 7 3 Leg 33 | . 28 43 44 45 41 . . . . . Flight 6 | . . . . . 3 42 41 36 32 5 Storage 8 | . 14 11 11 9 7 6 5 5 5 . Processor 5 | . . . . 8 9 6 11 10 10 13 Hackware 1 | . . . . . . . 2 5 11 10 Protection 6 | . 9 11 11 9 4 . . . . . Energy Gun 1 | . 4 2 6 . . . . . . . Ballistic Gun 13 | . 22 14 12 17 17 . . . . . Launcher 2 | . 1 5 2 . 2 . . . . . Peak Build Rating 77 | . 11 21 21 26 52 63 68 66 77 49 Average Rating 28 | . 9 16 20 25 33 52 64 66 66 33 On Entrance 32 | 6 6 10 21 21 26 50 56 66 66 26 Avg Prop Armor Cover (%) 5 | . . . . . 5 . . . . . Naked Turns . | . . . . . . . . . . . Heaviest Build 44 | 13 23 41 41 41 44 39 37 35 35 5 Greatest Support 88 | 20 20 54 54 71 88 40 37 37 39 10 Greatest Overweight (x) 1 | . 1 . . . . . . . 1 . Average Overweight (x) . | . . . . . . . . . . . Largest Inventory Capacity 15 | . 8 15 15 15 15 15 15 15 15 5 Average Capacity 12 | . 8 9 15 15 15 15 15 15 14 5 Most Carried 15 | . 8 15 15 15 15 15 15 15 15 5 Average Carried 11 | . 7 8 14 14 14 12 14 15 14 3 Final Capacity 15 | 8 8 15 15 15 15 15 15 15 5 5 Final Carried 15 | 6 8 15 15 15 15 15 15 15 5 3 Class Distribution -------------------- 43% | Mutant 10% | Commander-Mutant 9% | Sprinter 8% | Scientist-Tank 7% | Scavenger-Gunner 4% | Scientist-Mutant 4% | Hacker-Sprinter 3% | Scavenger-Tank Dominant Class ---------------- Mutant | -10/Materials Mutant | -9/Materials Commander-Mutant | -9/Storage Mutant | -8/Materials Scientist-Tank | -7/Factory Sprinter | -6/Factory Scientist-Sprinter | -5/Factory Scientist-Sprinter | -4/Factory Scientist-Sprinter | -4/DSF Hacker-Mutant | -3/Research Resources | -11 -10 -9 -9 -8 -7 -6 -5 -4 -4 -3 ----------- Run | Yrd Mat Mat Sto Mat Fac Fac Fac Fac DSF Res Matter Collected 2127 | 200 103 509 170 352 662 93 . . . 38 Remotely . | . . . . . . . . . . . Salvage Created 2396 | . 247 545 173 450 670 311 . . . . Parts 139 | . 20 33 13 23 30 20 . . . . Haulers Intercepted 5 | . . 1 . 2 . 2 . . . . Recyclers Shooed 3 | . . 2 . . 1 . . . . . Parts Field Recycled . | . . . . . . . . . . . Retrieved Matter . | . . . . . . . . . . . Parts Self-Destructed . | . . . . . . . . . . . Prevented . | . . . . . . . . . . . Parts Restored . | . . . . . . . . . . . Kills | -11 -10 -9 -9 -8 -7 -6 -5 -4 -4 -3 ------- Run | Yrd Mat Mat Sto Mat Fac Fac Fac Fac DSF Res Combat Hostiles Destroyed 56 | . 7 14 4 10 16 5 . . . . Melee 2 | . . . . . . 2 . . . . Guns 47 | . 7 10 4 10 16 . . . . . AOE 7 | . . 4 . . . 3 . . . . Classes Destroyed 9 | . 3 3 1 . 1 1 . . . . Worker 2 | . 2 . . . . . . . . . Builder 1 | . . 1 . . . . . . . . Hauler 5 | . . 1 . 2 . 2 . . . . Watcher 1 | . . . . . . 1 . . . . Swarmer 14 | . 3 4 . 3 . 4 . . . . Grunt 23 | . 4 4 1 5 9 . . . . . Duelist 3 | . . . 1 1 1 . . . . . Sentry 13 | . . 6 2 1 3 1 . . . . Programmer 3 | . . . . . 3 . . . . . Best Kill Streak 6 | . 2 6 1 3 3 4 . . . . Combat Bots Only 4 | . 2 4 1 3 3 4 . . . . Max Kills in Single Turn 2 | . 2 2 1 1 1 2 . . . . Gunslinging . | . . . . . . . . . . . Exploded 2 | . . 2 . . . 2 . . . . Melee 1 | . . . . . . 1 . . . . Uniques/NPCs Destroyed . | . . . . . . . . . . . Combat | -11 -10 -9 -9 -8 -7 -6 -5 -4 -4 -3 -------- Run | Yrd Mat Mat Sto Mat Fac Fac Fac Fac DSF Res Hostile Shots Fired 499 | . 36 44 12 40 151 9 . . 17 190 Missed 213 | . 5 16 3 13 66 4 . . 3 103 Hits 286 | . 31 28 9 27 85 5 . . 14 87 Melee 18 | . . . . 2 1 . . . 13 2 Projectile 268 | . 31 28 9 25 84 5 . . 1 85 AOE 3 | . . . . . 1 . . . . 2 Critical Strikes 22 | . . 2 2 3 4 . . . 7 4 Part Disruptions 1 | . . . . . 1 . . . . . Damage Taken 4680 | . 373 377 180 523 1102 133 . . 333 1659 Core 1821 | . 91 46 14 67 95 68 . . 117 1323 Absorbed by Shields 63 | . . . . . . . . . 63 . Redirected to Shielding 100 | . . . . . 100 . . . . . Regen/Repaired (Parts) 40 | . . . 40 . . . . . . . Core Remaining (%) 87 | 100 63 . 85 87 86 92 100 . 89 . Volleys Fired 162 | . 30 37 15 29 49 2 . . . . Largest 3 | . 2 2 2 2 3 1 . . . . Hottest 79 | . 60 79 79 46 76 30 . . . . Shots Fired 341 | . 59 67 28 58 127 2 . . . . Gun 332 | . 58 63 26 58 127 . . . . . Cannon . | . . . . . . . . . . . Launcher 9 | . 1 4 2 . . 2 . . . . Special . | . . . . . . . . . . . Kinetic 302 | . 44 51 22 58 127 . . . . . Thermal 16 | . . 12 4 . . . . . . . Explosive 9 | . 1 4 2 . . 2 . . . . Electromagnetic 14 | . 14 . . . . . . . . . Robot Hit Streak 19 | . 5 10 8 12 19 . . . . . Robot Miss Streak 7 | . 3 5 7 4 7 . . . . . Penetration Max . | . . . . . . . . . . . Secondary Targets 1 | . 1 . . . . . . . . . Max Gunslinging Chain 1 | . 1 . . . . . . . . . Shots Hit Robots 248 | . 32 44 16 46 102 8 . . . . Core Hits 156 | . 14 29 10 25 69 9 . . . . Critical Kills 1 | . . . . 1 . . . . . . Critical Parts Destroyed 1 | . . . . . 1 . . . . . Critical Strikes 7 | . . . 2 1 1 3 . . . . Burn 2 | . . . 2 . . . . . . . Destroy 2 | . . . . 1 1 . . . . . Impale 3 | . . . . . . 3 . . . . Melee Attacks 23 | . . . . . 8 11 3 . 1 . Impact . | . . . . . . . . . . . Slashing 7 | . . . . . 7 . . . . . Piercing 16 | . . . . . 1 11 3 . 1 . Sneak Attacks 5 | . . . . . . 5 . . . . Combat Hostiles 1 | . . . . . . 1 . . . . Follow-up Attacks 2 | . . . . . . 2 . . . . Damage Inflicted 4896 | . 458 992 273 672 1766 735 . . . . Guns 3800 | . 396 702 264 672 1766 . . . . . Cannons . | . . . . . . . . . . . Explosions 653 | . 60 269 9 . . 315 . . . . Melee 420 | . . . . . . 420 . . . . Ramming 23 | . 2 21 . . . . . . . . Kinetic 3567 | . 305 617 207 672 1766 . . . . . Thermal 142 | . . 85 57 . . . . . . . Explosive 653 | . 60 269 9 . . 315 . . . . Electromagnetic 91 | . 91 . . . . . . . . . Impact . | . . . . . . . . . . . Slashing . | . . . . . . . . . . . Piercing 420 | . . . . . . 420 . . . . Highest Corruption 6 | . 1 . . . 6 1 . . . . Average Corruption 2 | . 1 . . . 3 1 . . . . Corruption Purged . | . . . . . . . . . . . Corruption Blocked . | . . . . . . . . . . . Effects 17 | . . . . . 17 . . . . . Message Errors 4 | . . . . . 4 . . . . . Matter Fused 2 | . . . . . 2 . . . . . Heat Flow Errors 5 | . . . . . 5 . . . . . Energy Discharges 3 | . . . . . 3 . . . . . Data Loss (minor) 1 | . . . . . 1 . . . . . Data Loss (major) 1 | . . . . . 1 . . . . . Alerts 1 | . . . . . 1 . . . . . Overload Shots . | . . . . . . . . . . . Overflow Damage 51 | . . . . . . 51 . . . . Projectiles . | . . . . . . . . . . . Explosions 17 | . . . . . . 17 . . . . Melee 34 | . . . . . . 34 . . . . Knockbacks . | . . . . . . . . . . . Impact . | . . . . . . . . . . . Kinetic . | . . . . . . . . . . . Secondary . | . . . . . . . . . . . Self-Inflicted Damage 45 | . 19 7 19 . . . . . . . Shots 3 | . 1 1 1 . . . . . . . Rammed . | . . . . . . . . . . . Targets Rammed 5 | . 2 2 1 . . . . . . . Kicked 5 | . 2 2 1 . . . . . . . Crushed . | . . . . . . . . . . . Highest Temperature 308 | . 191 138 42 20 295 301 308 224 22 . Average Temperature 76 | . 75 43 17 4 58 70 154 117 13 . Received Heat Transfer 1168 | . 153 198 72 189 294 . . . . 262 Siege Activations . | . . . . . . . . . . . Martial Activations . | . . . . . . . . . . . Shielding Activations . | . . . . . . . . . . . Robots Disrupted . | . . . . . . . . . . . Combat Hostiles . | . . . . . . . . . . . Robots Corrupted . | . . . . . . . . . . . Combat Hostiles . | . . . . . . . . . . . Parts Fried . | . . . . . . . . . . . Impact Corruptions . | . . . . . . . . . . . Robots Melted . | . . . . . . . . . . . Combat Hostiles . | . . . . . . . . . . . Parts Melted 3 | . . 1 2 . . . . . . . Heat Transferred 518 | . . 222 296 . . . . . . . Parts Sabotaged . | . . . . . . . . . . . Parts Stolen . | . . . . . . . . . . . Parts Stripped . | . . . . . . . . . . . Power Chain Reactions . | . . . . . . . . . . . Alert | -11 -10 -9 -9 -8 -7 -6 -5 -4 -4 -3 ------- Run | Yrd Mat Mat Sto Mat Fac Fac Fac Fac DSF Res Maximum Alert Level 1 | . . 1 1 1 . . . . . . Low Security (%) 91 | . 100 86 70 79 100 100 100 100 100 100 Level 1 8 | . . 13 29 20 . . . . . . Level 2 . | . . . . . . . . . . . Level 3 . | . . . . . . . . . . . Level 4 . | . . . . . . . . . . . Level 5 . | . . . . . . . . . . . High Security . | . . . . . . . . . . . Max Security . | . . . . . . . . . . . Peak Influence 324 | . 70 236 324 252 159 199 135 75 87 51 Initial 114 | . . 8 92 114 109 58 86 60 52 42 Average 90 | . 21 70 185 160 64 144 113 67 66 27 Influence Increases 2663 | . 214 440 628 359 476 219 119 15 45 148 Destroy 0b10 Robot/C 1340 | . 140 280 300 200 320 100 . . . . Destroy 0b10 Robot/NC 55 | . 10 10 10 10 . 15 . . . . Destroy Leader 386 | . 30 92 94 44 100 26 . . . . Allied During Kill 124 | . . . 124 . . . . . . . Successful Hack 249 | . . 11 69 30 35 23 38 . . 43 Select Force Hacks 30 | . . . . . . . 30 . . . Disable Machine 60 | . 15 15 15 . 15 . . . . . Destroy Structure 74 | . 4 32 16 . 6 10 6 . . . Partial Spotted 165 | . . . . 15 . 45 45 15 15 30 Lose Combat Pursuer 180 | . 15 . . 60 . . . . 30 75 Influence Decreases 2663 | . 194 240 576 388 599 162 171 65 43 225 Entered New Map 708 | . . 12 128 158 134 62 91 65 23 35 Time Decay 1584 | . 194 218 238 230 414 90 80 . . 120 Lost Part 171 | . . 10 10 . 51 10 . . 20 70 Lost Ally 200 | . . . 200 . . . . . . . Squads Dispatched 26 | . 2 . 2 1 7 2 3 . 2 7 Investigation 10 | . . . 1 1 2 1 2 . . 3 Extermination 4 | . . . . . 2 . 1 . . 1 Reinforcement 8 | . 2 . 1 . 1 1 . . 2 1 Assault 2 | . . . . . . . . . . 2 Garrison 2 | . . . . . 2 . . . . . Intercept . | . . . . . . . . . . . Searches Triggered . | . . . . . . . . . . . Construction Impeded . | . . . . . . . . . . . Haulers Reinforced . | . . . . . . . . . . . Active Scanning Responses . | . . . . . . . . . . . Cargo Convoy Interrupts . | . . . . . . . . . . . Stealth | -11 -10 -9 -9 -8 -7 -6 -5 -4 -4 -3 --------- Run | Yrd Mat Mat Sto Mat Fac Fac Fac Fac DSF Res Distress Signals 13 | . 2 1 3 2 . . . . . 5 Communications Jammed . | . . . . . . . . . . . Distress Signals . | . . . . . . . . . . . Times Spotted 131 | . 14 16 13 16 21 3 1 . 6 41 Peak Tracking Total 27 | . 3 4 4 4 3 3 1 . 5 27 Tactical Retreats 10 | . 1 . . 3 . . . . 2 4 Traps | -11 -10 -9 -9 -8 -7 -6 -5 -4 -4 -3 ------- Run | Yrd Mat Mat Sto Mat Fac Fac Fac Fac DSF Res Traps Triggered 6 | . . . 1 . 1 1 . . 2 1 Indirectly . | . . . . . . . . . . . Trap Hack Attempts . | . . . . . . . . . . . Triggered . | . . . . . . . . . . . Disarmed 3 | . . . 3 . . . . . . . Reprogrammed . | . . . . . . . . . . . Reused . | . . . . . . . . . . . Traps Extracted . | . . . . . . . . . . . Installed . | . . . . . . . . . . . Triggered . | . . . . . . . . . . . Machines | -11 -10 -9 -9 -8 -7 -6 -5 -4 -4 -3 ---------- Run | Yrd Mat Mat Sto Mat Fac Fac Fac Fac DSF Res Machines Disabled 4 | . 1 1 1 . 1 . . . . . Max in Single Turn 1 | . 1 1 1 . 1 . . . . . Garrison Access 2 | . . . . . 1 . . . . 1 Machines Repaired . | . . . . . . . . . . . Machines Dismantled . | . . . . . . . . . . . Machines Sabotaged . | . . . . . . . . . . . Overloaded Fab Kills . | . . . . . . . . . . . Hacking | -11 -10 -9 -9 -8 -7 -6 -5 -4 -4 -3 --------- Run | Yrd Mat Mat Sto Mat Fac Fac Fac Fac DSF Res Machines Accessed 53 | . 2 4 11 5 7 8 9 1 . 6 Terminals 33 | . 2 2 9 5 3 2 5 1 . 4 Fabricators 2 | . . . . . . . 1 . . 1 Repair Stations 1 | . . . 1 . . . . . . . Recycling Units 8 | . . 1 1 . 1 4 1 . . . Scanalyzers 6 | . . 1 . . 2 1 1 . . 1 Garrison Access 3 | . . . . . 1 1 1 . . . Total Hacks 158 | . 4 16 37 24 23 19 20 2 . 13 Successful 78 | . . 9 27 13 11 8 6 1 . 3 Failed 80 | . 4 7 10 11 12 11 14 1 . 10 Catastrophic 11 | . . . 2 1 2 4 . . . 2 Database Lockouts . | . . . . . . . . . . . Manual 88 | . 4 8 25 20 14 7 9 . . 1 Terminals 103 | . 4 6 30 24 12 5 12 2 . 8 Fabricators 3 | . . . . . . . 1 . . 2 Repair Stations 2 | . . . 2 . . . . . . . Recycling Units 23 | . . 4 5 . 3 9 2 . . . Scanalyzers 20 | . . 6 . . 7 2 2 . . 3 Garrison Access 7 | . . . . . 1 3 3 . . . Terminal Hacks 27 | . . 1 12 7 2 1 1 1 . 2 Part Schematic 1 | . . . 1 . . . . . . . Prototype ID Bank 1 | . . . . . 1 . . . . . Open Door 1 | . . . 1 . . . . . . . Open DSF 2 | . . . . . . . . 1 . 1 Branch Access Points 4 | . . 1 1 1 . . . . . 1 Emergency Access Points 1 | . . . . 1 . . . . . . Terminal Index 2 | . . . 1 1 . . . . . . Recycling Unit Index 1 | . . . . 1 . . . . . . Alert Level 2 | . . . 1 1 . . . . . . Locate Traps 3 | . . . 2 . . 1 . . . . Disarm Traps 1 | . . . 1 . . . . . . . Security Status 1 | . . . 1 . . . . . . . Registered Components 1 | . . . . 1 . . . . . . Zone Layout 6 | . . . 3 1 1 . 1 . . . Fabricator Hacks 1 | . . . . . . . 1 . . . Build 1 | . . . . . . . 1 . . . Repair Station Hacks 2 | . . . 2 . . . . . . . Scan Component 1 | . . . 1 . . . . . . . Repair 1 | . . . 1 . . . . . . . Recycling Unit Hacks 4 | . . . 1 . . 2 1 . . . Report Inventory 4 | . . . 1 . . 2 1 . . . Scanalyzer 12 | . . 4 . . 4 2 1 . . 1 Insert Component 1 | . . 1 . . . . . . . . Analyze 1 | . . 1 . . . . . . . . Retrieve Study 10 | . . 2 . . 4 2 1 . . 1 Garrison Access Hacks 1 | . . . . . 1 . . . . . Seal Access 1 | . . . . . 1 . . . . . Unauthorized Hacks 31 | . . 4 12 6 4 3 2 . . . Terminals 22 | . . 2 8 6 3 2 1 . . . Track 3 | . . . 1 1 1 . . . . . Botnet 19 | . . 2 7 5 2 2 1 . . . Fabricators . | . . . . . . . . . . . Repair Stations . | . . . . . . . . . . . Recycling Units 9 | . . 2 4 . 1 1 1 . . . Monitor 1 | . . . 1 . . . . . . . Reject 2 | . . 1 1 . . . . . . . Recyclers 4 | . . 1 1 . 1 1 . . . . Mask 1 | . . . 1 . . . . . . . Tunnel 1 | . . . . . . . 1 . . . Scanalyzers . | . . . . . . . . . . . Garrison Access . | . . . . . . . . . . . Data Cores Recovered . | . . . . . . . . . . . Used . | . . . . . . . . . . . Hacking Detections 47 | . 2 4 8 5 6 8 8 1 . 5 Full Trace Events 9 | . 1 . 1 1 2 1 1 . . 2 Feedback Events 2 | . 1 . . . . . . . . 1 Corruption 1 | . 1 . . . . . . . . . Hackware Fried 1 | . . . . . . . . . . 1 Feedback Blocked . | . . . . . . . . . . . Robot Schematics Acquired . | . . . . . . . . . . . Robots Built . | . . . . . . . . . . . Authchips . | . . . . . . . . . . . Time 76 | . . . . . . . 76 . . . Total Robot Build Rating . | . . . . . . . . . . . Part Schematics Acquired 2 | . . 1 1 . . . . . . . Parts Built . | . . . . . . . . . . . Authchips . | . . . . . . . . . . . Time . | . . . . . . . . . . . Total Part Build Rating . | . . . . . . . . . . . Part Studies Acquired 9 | . . 1 . . 4 2 1 . . 1 Parts Repaired 1 | . . . 1 . . . . . . . Time 26 | . . . 26 . . . . . . . Parts Recycled . | . . . . . . . . . . . Recycled Matter . | . . . . . . . . . . . Retrieved Matter . | . . . . . . . . . . . Retrieved Components . | . . . . . . . . . . . Parts Scanalyzed 1 | . . 1 . . . . . . . . Part Schematics Acquired 1 | . . 1 . . . . . . . . Parts Damaged . | . . . . . . . . . . . Bothacking | -11 -10 -9 -9 -8 -7 -6 -5 -4 -4 -3 ------------ Run | Yrd Mat Mat Sto Mat Fac Fac Fac Fac DSF Res Used RIF Installer . | . . . . . . . . . . . Robots Hacked . | . . . . . . . . . . . Non-combat . | . . . . . . . . . . . Combat . | . . . . . . . . . . . Robot Hacks Applied . | . . . . . . . . . . . Relay Couplers Released 2 | . . . . . . . . . . 2 Machine Destruction 2 | . . . . . . . . . . 2 Fabnet Peak Effective % . | . . . . . . . . . . . Robots Rewired . | . . . . . . . . . . . Allies Hacked . | . . . . . . . . . . . Hacks Repelled . | . . . . . . . . . . . Allies | -11 -10 -9 -9 -8 -7 -6 -5 -4 -4 -3 -------- Run | Yrd Mat Mat Sto Mat Fac Fac Fac Fac DSF Res Total Allies 10 | . . . 10 . . . . . . . Largest Group 10 | . . . 10 . . . . . . . Highest-Rated Group 88 | . . . 88 . . . . . . . Highest-Rated Ally 16 | . . . 16 . . . . . . . Total Orders . | . . . . . . . . . . . Ally Attacks 95 | . . . 95 . . . . . . . Total Damage 873 | . . . 873 . . . . . . . Kills 13 | . . . 13 . . . . . . . Allies Corrupted . | . . . . . . . . . . . Allies Melted . | . . . . . . . . . . . Intel | -11 -10 -9 -9 -8 -7 -6 -5 -4 -4 -3 ------- Run | Yrd Mat Mat Sto Mat Fac Fac Fac Fac DSF Res Active Infowar (turns) 919 | . . . . 439 85 181 159 15 40 . Optics 491 | . . . . 439 52 . . . . . Sensors 428 | . . . . . 33 181 159 15 40 . Robot Analysis Total . | . . . . . . . . . . . Derelict Logs Recovered . | . . . . . . . . . . . Drone Launches . | . . . . . . . . . . . Drone Recoveries . | . . . . . . . . . . . Exploration | -11 -10 -9 -9 -8 -7 -6 -5 -4 -4 -3 ------------- Run | Yrd Mat Mat Sto Mat Fac Fac Fac Fac DSF Res Turns Passed 3861 | . 514 531 500 480 1153 188 161 15 53 266 Spaces Moved 3947 | 1 230 291 359 268 951 356 604 85 120 682 Core 18 | . . . . . . . . . . 18 Treads . | . . . . . . . . . . . Legs 1829 | 1 230 291 359 268 680 . . . . . Wheels . | . . . . . . . . . . . Hover . | . . . . . . . . . . . Flight 2100 | . . . . . 271 356 604 85 120 664 Fastest Speed 6 | 120 120 105 117 115 20 11 17 17 6 32 Average Speed 68 | 120 167 115 117 118 84 18 17 17 16 34 Slowest Speed 190 | 120 190 120 121 120 121 20 17 17 32 50 Overloaded Moves 18 | . . . . . . 8 . . 10 . Propulsion Burnouts . | . . . . . . . . . . . Robots Hopped 18 | . . . . . . . 3 . . 15 Potential Cave-ins 2 | . . . . . . . . . . 2 Cave-ins Triggered . | . . . . . . . . . . . Exploration Rate (%) 30 | 2 45 26 54 23 24 15 22 4 87 30 Regions Visited 10 Branch Regions 1 Pre-discovered Areas 1 | . . . . . . . 1 . . . Known Exits Taken 5 | . . 1 . . 1 1 1 1 . . Unknown Exits Taken 4 | 1 1 . 1 1 . . . . . . Scrap Searched . | . . . . . . . . . . . Spaces Dug 19 | . . . 10 . 5 1 3 . . . Terrain Destroyed 72 | . 3 30 16 . 5 15 3 . . . Melee 9 | . . . . . 5 1 3 . . . Projectile . | . . . . . . . . . . . AOE 63 | . 3 30 16 . . 14 . . . . Terrain Rammed . | . . . . . . . . . . . Walls Destroyed . | . . . . . . . . . . . Machines Disabled . | . . . . . . . . . . . Actions | -11 -10 -9 -9 -8 -7 -6 -5 -4 -4 -3 --------- Run | Yrd Mat Mat Sto Mat Fac Fac Fac Fac DSF Res Total 4746 | . 304 417 411 374 1186 464 655 84 153 698 Wait 359 | . 21 46 16 56 92 71 30 . 7 20 Move 3905 | . 229 290 358 267 950 355 597 84 119 656 Hop 14 | . . . . . . . 3 . . 11 Pick Up 73 | . 7 14 7 8 23 4 5 . 3 2 Fast Attach 19 | . 2 1 1 . 6 4 1 . 2 2 Attach 32 | . . 3 3 3 8 5 5 . . 5 Detach 17 | . . 1 . . 3 7 4 . . 2 Swap 43 | . 4 14 3 4 13 . 3 . 2 . Drop 67 | . 9 9 4 7 20 7 4 . 7 . Fire 162 | . 30 37 15 29 49 2 . . . . Melee 20 | . . . . . 7 9 3 . 1 . Ram . | . . . . . . . . . . . Kick 5 | . 2 2 1 . . . . . . . Crush . | . . . . . . . . . . . Escape Stasis 27 | . . . . . 15 . . . 12 . Rewire 3 | . . . 3 . . . . . . . Trap . | . . . . . . . . . . . Miscellaneous . | . . . . . . . . . . . Route ------- -11/Scrapyard -10/Materials -9/Materials (discovered 3 exits: Min / *Sto x2) -9/Storage (discovered 2 exits: *Mat / Rec) -8/Materials -7/Factory (discovered 2 exits: *Fac / *Low) -6/Factory (discovered 2 exits: *Fac / *Low) -5/Factory -4/Factory -4/DSF -3/Research (discovered 2 exits: Qua x2) History --------- Turn | Location | Event 1 | -11/Scrapyard | Discovered new exit (range 0) 1 | -11/Scrapyard | Entered Materials 305 | -10/Materials | Build established: Mutant 489 | -10/Materials | Discovered new exit (range 7) 515 | -10/Materials | Entered another Materials area 515 | -9/Materials | Evolved 2 slots: Propulsion x2 847 | -9/Materials | Discovered new exit (range 10) 901 | -9/Materials | Discovered new exit (range 4) 912 | -9/Materials | Identified exit to Mines 912 | -9/Materials | Identified exit to Storage 1046 | -9/Materials | Entered Storage 1054 | -9/Storage | Assisted by bots powering up and referring to "LRC-V3" 1200 | -9/Storage | Repaired Aluminum Leg+? 1362 | -9/Storage | Build established: Commander-Mutant 1365 | -9/Storage | Identified exit to Recycling 1484 | -9/Storage | Lost 6 allies 1507 | -9/Storage | Discovered new exit (range 15) 1546 | -9/Storage | Entered Materials 1546 | -8/Materials | Evolved 2 slots: Propulsion x1, Utility x1 1757 | -8/Materials | Build established: Mutant 1902 | -8/Materials | Discovered new exit (range 14) 2026 | -8/Materials | Entered Factory 2026 | -7/Factory | Evolved 2 slots: Propulsion x1, Weapon x1 2026 | -7/Factory | Discovered new exit (range 18) 2079 | -7/Factory | Identified exit to Lower Caves 2365 | -7/Factory | Build established: Scientist-Tank 2863 | -7/Factory | Garrison activated, responded to threat 3063 | -7/Factory | Build established: Scavenger-Gunner 3115 | -7/Factory | Discovered new exit (range 15) 3118 | -7/Factory | Identified exit to Factory 3179 | -7/Factory | Entered another Factory area 3179 | -6/Factory | Evolved 2 slots: Power x1, Propulsion x1 3198 | -6/Factory | Discovered new exit (range 8) 3216 | -6/Factory | Identified exit to Lower Caves 3344 | -6/Factory | Discovered new exit (range 7) 3345 | -6/Factory | Identified exit to Factory 3367 | -6/Factory | Entered another Factory area 3367 | -5/Factory | Evolved 2 slots: Utility x2 3435 | -5/Factory | Build established: Sprinter 3506 | -5/Factory | Discovered new exit (range 12) 3523 | -5/Factory | Identified exit to Factory 3528 | -5/Factory | Entered another Factory area 3528 | -4/Factory | Evolved 2 slots: Utility x2 3538 | -4/Factory | Identified exit to DSF 3543 | -4/Factory | Entered DSF 3571 | -4/DSF | Additional patrols routed to DSF 3578 | -4/DSF | Discovered new exit (range 15) 3596 | -4/DSF | Identified exit to Research 3596 | -4/DSF | Entered Research 3596 | -3/Research | Evolved 2 slots: Utility x1, Weapon x1 3672 | -3/Research | Spotted B-86 Titan 3692 | -3/Research | Identified exit to Quarantine 3729 | -3/Research | Spotted B-86 Titan 3732 | -3/Research | Adv. System Shield fried by hacking feedback 3842 | -3/Research | Core integrity fell below 50% 3855 | -3/Research | Core integrity fell below 20% 3862 | -3/Research | Destroyed by C-35 Carver with Carbide Saw Last Messages --------------- 03845_ Slug penetrates Recycling Unit. 03846_ H-77 Assassin suffers critical hit (Destroy). 03848_ Acquired 28 matter. 03848_ Critical hit (Burn: +50). 03848_ C-45 Heavy ARC bursts open, deploying its payload. 03848_ G-73 Enforcer unfolds itself. 03848_ G-67 Veteran unfolds itself. 03848_ M-36 Artificer unfolds itself. 03850_ Impulse Thruster+ destroyed. 03850_ R-10 Processor collects Structural Scanner. 03850_ K-01 Serf collects debris. 03851_ Critical hit (Burn: +37). 03853_ K-01 Serf destroyed. 03853_ K-01 Serf collects debris. 03856_ Knocked back. 03856_ K-01 Serf destroyed. 03856_ K-01 Serf collects debris. 03857_ ALERT: Potential suspicious activity detected, Programmers report to Research Zone 4T. 03857_ Adv. Melee Analysis Suite destroyed. Map ----- +----------------------------------------------------+ | ????????# #?????????????????????????????????# ! | | ????????# #?????????????????????????????????# ! | | ######### #??????????????????###########????# | | # #??????????????????# """ #????# | | # #??????????????????# ""T"" ##???#" | | # #??????????????????# "" "" ????## | | ] # #??????????????????# #?????# | | # #??????????????????# #?????# | | # +??????????????????# !!#?????# | | # #??????????????????? ! ????### | | # #????????####????????? ??????#"" | | ###+##### ##########T ############"########## | | ?# "%" | | # != | | # *% = H %% | | " ##############gg ########/####"""###"#### | | # #????????????# #?????## ######### | | # #????????????#= g #?????# ## # | | ?# #??????????#?#* ##????##! """ ] ## ! # | | ?# #??????????# # #?????# "Y" ## / | | ?# #??????????# = ##????# " " = ## # | | ?# #??????????# #????# ## ! # | | ?# #??????????### #????# ## # | | ## #??????????# c#????# ^ ########### | | #??????????## c##???# #?????????# | | " ??????## #c@#???################???? | | # """????# ####?????# ##### | | # """????# #????????# ## | | ## #? ""?????# #????????# ## | | ?# +? ""?????# #????????#] #?? | | ?# #?? ?????# #?? ????# #???? | | ?# #?? ????# #? ?????####+############# | | ?# #???######???# #? ??????# | | ?? ????????????# # ??????# ] | | ?? "???????????# # ???????# | | ?? ???????????# +????????# | | ?? ""??????????# #????????######## """"" | | ?? ??########## #???????????????# """"" | | ?? "??# ! # ################# " "" | | ?? ????# # | | ?????????? " # | | ???>??????? """" # ^ ! | | ?????????? """" + !! | | ?????????? """" # != ####+######## | | ?????????? """" # #???????????? | | ?????????# # #???????????? | | ?????????# # #???????????? | | ?????????########## #???????????? | | ??????????????????# """ """ + ??????????? | | ??????????????????# """T""" # ?????????? | +----------------------------------------------------+ Best States ------------- Heat Dissipation 71 Energy Generation 29 Energy Capacity 750 Matter Stores 300 Matter Capacity 300 Sight Range 18 Robot Scan Range 16 Terrain Scan Density 10 Armor Coverage 600 Weapon Shielding 66 Evasion (%) 67 Melee Accuracy 16 Core Analysis 6 Offensive Hacking 32 Defensive Hacking 14 Authchip Count 1 Item Schematics ----------------- Imp. Assault Rifle | -9/Materials | Scanalyzed Carbon-fiber Leg | -9/Storage | Hacked Robot Schematics ------------------ None Fabricated ------------ Nothing Repaired ---------- Aluminum Leg | 55% | -9/Storage Studied --------- Aluminum Leg | -9/Materials | Hacked Titanium Leg | -7/Factory | Hacked Shotgun | -7/Factory | Hacked Katana | -7/Factory | Hacked Mic. Nuclear Core | -7/Factory | Hacked Cesium-ion Thruster | -6/Factory | Hacked Spear | -6/Factory | Hacked VTOL Module | -5/Factory | Hacked Impulse Thruster | -3/Research | Hacked Alien Tech Used ----------------- None Achievements -------------- Heavy Suspicion Item+ Myspace Challenges ------------ None Game ------ Seed ColdFocalMindspike Manual? 0 Play Time 02:06:36 Cumulative 69.4 hours Start 2026.03.17 @ 17:51:40 End 2026.03.17 @ 19:58:10 Sessions 1 Manual Loads 0 Difficulty Rogue Special Mode None Game No. 62 Rogue 17 Adventurer 45 Explorer 0 Win Type - Total 3 Types 2/0/0/1/0/0/0/0/0/0 Lore% 35 Gallery% 44 Achievement% 28 Wizard Run 0 Options --------- Layout 0 ASCII 0 Keyboard 1 Movement Numpad Keybinds 0 Fullscreen 1 Font 24/Smallcaps Map View 76x50 Zoom Use 0% Tactical HUD 1 Map Filters NONE Filters NONE Steam 1 RUN: ba84d33f-7bfa-4a39-a690-1bab5c55d0c6